[Event "World Team-ch Women 2019"]
[Site "Astana"]
[Date "2019.03.08"]
[Round "4.13"]
[White "Abdumalik, Zhansaya"]
[Black "Abrahamyan, Tatev"]
[Result "1-0"]
[ECO "C19"]
[WhiteElo "2469"]
[BlackElo "2377"]
[Annotator "RC"]
[PlyCount "99"]
[EventDate "2019.02.05"]
[EventType "team-tourn"]
[EventCountry "KAZ"]
[SourceTitle "playchess.com"]
[Source "ChessBase"]
[SourceQuality "1"]
[WhiteTeam "Kazakhstan"]
[BlackTeam "United States"]
[WhiteTeamCountry "KAZ"]
[BlackTeamCountry "USA"]
[TimeControl "40/5400+30:1800+30"]

1. e4 {[%emt 0:00:00]} e6 {[%emt 0:00:00]} 2. d4 {[%emt 0:00:00]} d5 {[%emt 0:00:00]} 3. Nc3 {[%emt 0:00:00]} Bb4 {[%emt 0:00:00]} 4. e5 {[%emt 0:00:47]} c5 {[%emt 0:00:08]} 5. a3 {[%emt 0:00:06]} Bxc3+ {[%emt 0:00:03]} 6. bxc3 {[%emt 0:00:09]} Ne7 {[%emt 0:00:05]} 7. a4 {[%emt 0:01:02]} Qc7 {[%emt 0:01:06]} 8. Nf3 {[%emt 0:01:36]} b6 {[%emt 0:02:03]} 9. Bb5+ {[%emt 0:01:52]} Bd7 {[%emt 0:05:07]} 10. Bd3 {[%emt 0:01:06]} Nbc6 {[%emt 0:01:34]} 11. O-O {[%emt 0:03:39]} h6 {[%emt 0:01:37]} 12. Ba3 {[%emt 0:02:58]} Na5 {[%emt 0:06:04]} 13. Re1 {[%emt 0:04:48]} O-O {[%emt 0:28:47]} 14. Nh4 {[%emt 0:04:45]} f5 {[%emt 0:02:23]} 15. exf6 {[%emt 0:14:10]} Rxf6 {[%emt 0:00:07]} 16. Bc1 {[%emt 0:01:21]} Raf8 {[%emt 0:05:19]} 17. f4 {[%emt 0:02:35]} Be8 {[%emt 0:10:04]} 18. g3 {[%emt 0:06:08]} Nc4 {[%emt 0:04:52]} 19. Qg4 {[%emt 0:07:24]} Nf5 {[%emt 0:16:49]} 20. Nf3 {[%emt 0:07:55]} Ncd6 {[%emt 0:00:48]} 21. Qh3 {[%emt 0:04:25]} Ne4 {[%emt 0:02:09]} 22. Ra3 {[%emt 0:06:48]} Nfd6 {[%emt 0:03:27]} 23. Ne5 {[%emt 0:03:19]} c4 {[%emt 0:01:59]} 24. Be2 {[%emt 0:03:11]} b5 {[%emt 0:00:15]} 25. Bg4 {[%emt 0:02:44]} Bd7 {[%emt 0:03:28]} 26. axb5 {[%emt 0:04:54]} Nxb5 {[%emt 0:00:23]} 27. Ra6 {[%emt 0:05:26]} Qc8 {[%emt 0:02:08]} 28. Ra5 {[%emt 0:01:30]} Bc6 {[%emt 0:01:39]} 29. Ba3 {[%emt 0:03:44]} Nxa3 {[%emt 0:00:29]} 30. Rxa3 {[%emt 0:00:02]} a6 {[%emt 0:00:14]} 31. Rea1 {[%emt 0:01:22]} Bb5 {[%emt 0:00:18]} 32. Bh5 {[%emt 0:00:39]} Rd8 {[%emt 0:01:46]} 33. Bf3 {[%emt 0:01:42]} Nd6 {[%emt 0:00:24]} 34. Re1 {[%emt 0:00:35]} Rdf8 {[%emt 0:00:41]} 35. Bh5 {[%emt 0:02:10]} Rd8 {[%emt 0:00:30]} 36. Raa1 {[%emt 0:00:18]} Ne4 {[%emt 0:00:18]} 37. Re3 {[%emt 0:00:28]} Qc7 {[%emt 0:00:40]} 38. Bf3 {[%emt 0:00:41]} Nd6 {[%emt 0:00:31]} 39. Ng4 {[%emt 0:00:46]} Rg6 {[%emt 0:00:33]} 40. Rae1 {[%emt 0:00:00]} Ne4 {[%emt 0:00:00]} 41. Bxe4 {[%emt 0:04:13]} dxe4 {[%emt 0:00:41]} 42. Ne5 {[%emt 0:01:55]} Rf6 {[%emt 0:00:07]} 43. Rxe4 {[%emt 0:00:32]} Qa5 {[%emt 0:07:07]} 44. R4e3 {[%emt 0:04:44]} Qa2 {[%emt 0:03:40]} 45. Qg2 {[%emt 0:02:32]} Qb2 {[%emt 0:06:13]} 46. Ng4 {[%emt 0:03:10]} Rf5 {[%emt 0:04:17]} 47. Qe4 {[%emt 0:01:12]} Rd6 {[%emt 0:02:41]} 48. Ne5 {[%emt 0:01:04]} Rf8 {[%emt 0:04:06]} 49. g4 {[%emt 0:00:53]} a5 {[%emt 0:04:05]} 50. Rh3 {[%emt 0:01:01]} 1-0

[Event "World Team-ch Women 2019"]
[Site "Astana"]
[Date "2019.03.08"]
[Round "4.14"]
[White "Nemcova, Katerina"]
[Black "Saduakassova, Dinara"]
[Result "1-0"]
[ECO "A47"]
[WhiteElo "2315"]
[BlackElo "2462"]
[Annotator "ChessBase"]
[PlyCount "81"]
[EventDate "2019.02.05"]
[EventType "team-tourn"]
[EventCountry "KAZ"]
[SourceTitle "playchess.com"]
[Source "ChessBase"]
[SourceQuality "1"]
[WhiteTeam "United States"]
[BlackTeam "Kazakhstan"]
[WhiteTeamCountry "USA"]
[BlackTeamCountry "KAZ"]
[TimeControl "40/5400+30:1800+30"]

1. d4 {[%emt 0:00:00]} Nf6 {[%emt 0:00:00]} 2. Nf3 {[%emt 0:00:00]} b6 {[%emt 0:05:33]} 3. Bf4 {[%emt 0:02:06]} Bb7 {[%emt 0:00:26]} 4. e3 {[%emt 0:00:15]} g6 {[%emt 0:04:43]} 5. Be2 {[%emt 0:00:57]} Bg7 {[%emt 0:02:05]} 6. c4 {[%emt 0:00:49]} O-O {[%emt 0:02:15]} 7. Nc3 {[%emt 0:00:34]} d6 {[%emt 0:05:33]} 8. Qc2 {[%emt 0:00:55]} Nbd7 {[%emt 0:03:43]} 9. Rd1 {[%emt 0:01:04]} Qe8 {[%emt 0:02:04]} 10. Nb5 {[%emt 0:08:33]} Qc8 {[%emt 0:00:46]} 11. h3 {[%emt 0:01:14]} e5 {[%emt 0:04:54]} 12. Bh2 {[%emt 0:07:41]} Nh5 {[%emt 0:05:18]} 13. O-O {[%emt 0:01:26]} h6 {[%emt 0:03:56]} 14. b4 {[%emt 0:05:41]} a6 15. Nc3 {[%emt 0:01:39]} Re8 {[%emt 0:15:29]} 16. dxe5 {[%emt 0:09:24]} dxe5 {[%emt 0:00:21]} 17. Nd5 {[%emt 0:00:44]} Nhf6 {[%emt 0:02:37]} 18. Nxf6+ {[%emt 0:07:57]} Bxf6 {[%emt 0:00:12]} 19. c5 {[%emt 0:00:57]} bxc5 {[%emt 0:01:34]} 20. bxc5 {[%emt 0:01:11]} Bc6 {[%emt 0:02:47]} 21. Bc4 {[%emt 0:05:12]} Nf8 {[%emt 0:05:10]} 22. Bd5 {[%emt 0:04:57]} Bxd5 {[%emt 0:03:45]} 23. Rxd5 {[%emt 0:00:18]} e4 {[%emt 0:00:40]} 24. Nd4 {[%emt 0:17:12]} Ne6 {[%emt 0:01:39]} 25. c6 {[%emt 0:09:36]} Re7 {[%emt 0:04:41]} 26. Nb3 {[%emt 0:01:09]} Qe8 {[%emt 0:06:53]} 27. Rfd1 {[%emt 0:02:34]} Nf8 {[%emt 0:03:25]} 28. Na5 {[%emt 0:01:27]} Be5 {[%emt 0:02:06]} 29. Bxe5 {[%emt 0:00:26]} Rxe5 {[%emt 0:00:05]} 30. Nb7 {[%emt 0:01:58]} Re6 {[%emt 0:02:24]} 31. Rd7 {[%emt 0:01:53]} Rc8 {[%emt 0:02:48]} 32. Qc4 {[%emt 0:01:04]} Rf6 {[%emt 0:01:04]} 33. R1d5 {[%emt 0:02:27]} Qe6 {[%emt 0:02:02]} 34. Nd8 {[%emt 0:01:02]} Qe8 {[%emt 0:00:39]} 35. Qd4 {[%emt 0:00:58]} Rd6 {[%emt 0:02:29]} 36. Nxf7 {[%emt 0:01:42]} Nxd7 {[%emt 0:00:11]} 37. Nxd6 {[%emt 0:00:43]} cxd6 {[%emt 0:00:03]} 38. cxd7 {[%emt 0:00:21]} Qxd7 {[%emt 0:00:13]} 39. Rxd6 {[%emt 0:00:11]} Rc1+ {[%emt 0:03:59]} 40. Kh2 {[%emt 0:00:00]} Qc7 {[%emt 0:00:00]} 41. g3 {[%emt 0:01:50]} 1-0

[Event "World Team-ch Women 2019"]
[Site "Astana"]
[Date "2019.03.08"]
[Round "4.15"]
[White "Assaubayeva, Bibisara"]
[Black "Yip, Carissa"]
[Result "1-0"]
[ECO "A05"]
[WhiteElo "2376"]
[BlackElo "2279"]
[Annotator "NA"]
[PlyCount "73"]
[EventDate "2019.02.05"]
[EventType "team-tourn"]
[EventCountry "KAZ"]
[SourceTitle "playchess.com"]
[Source "ChessBase"]
[SourceQuality "1"]
[WhiteTeam "Kazakhstan"]
[BlackTeam "United States"]
[WhiteTeamCountry "KAZ"]
[BlackTeamCountry "USA"]
[TimeControl "40/5400+30:1800+30"]

1. Nf3 {[%emt 0:00:00]} Nf6 {[%emt 0:00:00]} 2. c4 {[%emt 0:00:00]} g6 {[%emt 0:00:00]} 3. Nc3 {[%emt 0:00:00]} Bg7 {[%emt 0:00:50]} 4. e4 {[%emt 0:00:10]} d6 {[%emt 0:00:03]} 5. d4 {[%emt 0:00:14]} O-O {[%emt 0:00:06]} 6. h3 {[%emt 0:00:16]} e5 {[%emt 0:00:06]} 7. d5 {[%emt 0:00:06]} a5 {[%emt 0:00:28]} 8. g4 {[%emt 0:00:17]} Na6 {[%emt 0:00:04]} 9. Be3 {[%emt 0:00:11]} Nd7 {[%emt 0:00:34]} 10. a3 {[%emt 0:00:10]} Nac5 {[%emt 0:04:11]} 11. Rg1 {[%emt 0:01:16]} a4 {[%emt 0:00:28]} 12. Nd2 {[%emt 0:00:06]} Kh8 {[%emt 0:01:48]} 13. Qc2 {[%emt 0:06:09]} Nb6 {[%emt 0:03:39]} 14. O-O-O {[%emt 0:03:49]} Bd7 {[%emt 0:07:48]} 15. Kb1 {[%emt 0:02:43]} Ra5 {[%emt 0:04:48]} 16. Be2 {[%emt 0:04:47]} c6 {[%emt 0:17:27]} 17. h4 {[%emt 0:09:20]} cxd5 {[%emt 0:03:58]} 18. exd5 {[%emt 0:05:06]} Qxh4 {[%emt 0:09:18]} 19. Nde4 {[%emt 0:04:44]} Qe7 {[%emt 0:00:17]} 20. Nxc5 {[%emt 0:02:07]} dxc5 {[%emt 0:00:08]} 21. Ne4 {[%emt 0:00:51]} Rc8 {[%emt 0:09:35]} 22. Qc3 {[%emt 0:01:49]} Raa8 {[%emt 0:00:40]} 23. Nxc5 {[%emt 0:06:55]} e4 {[%emt 0:10:42]} 24. Bd4 {[%emt 0:05:09]} f6 {[%emt 0:03:20]} 25. Qb4 {[%emt 0:04:18]} Qd6 {[%emt 0:00:31]} 26. g5 {[%emt 0:02:44]} Rf8 {[%emt 0:09:29]} 27. Ne6 {[%emt 0:03:19]} Qxb4 {[%emt 0:04:42]} 28. axb4 {[%emt 0:01:52]} Bxe6 {[%emt 0:01:01]} 29. dxe6 {[%emt 0:00:09]} Nc8 {[%emt 0:00:06]} 30. gxf6 {[%emt 0:00:20]} Rxf6 {[%emt 0:00:04]} 31. Bxf6 {[%emt 0:00:41]} Bxf6 {[%emt 0:00:04]} 32. Rd7 {[%emt 0:10:10]} a3 {[%emt 0:00:28]} 33. Rf7 {[%emt 0:00:38]} Be5 {[%emt 0:02:03]} 34. Rf8+ {[%emt 0:02:30]} Kg7 {[%emt 0:00:01]} 35. e7 {[%emt 0:00:23]} axb2 {[%emt 0:00:45]} 36. e8=Q {[%emt 0:00:10]} Ra1+ {[%emt 0:00:03]} 37. Kc2 {[%emt 0:00:07]} 1-0

[Event "World Team-ch Women 2019"]
[Site "Astana"]
[Date "2019.03.08"]
[Round "4.16"]
[White "Foisor, Sabina-Francesca"]
[Black "Dauletova, Gulmira"]
[Result "1/2-1/2"]
[ECO "D38"]
[WhiteElo "2276"]
[BlackElo "2263"]
[Annotator "NA"]
[PlyCount "120"]
[EventDate "2019.02.05"]
[EventType "team-tourn"]
[EventCountry "KAZ"]
[SourceTitle "playchess.com"]
[Source "ChessBase"]
[SourceQuality "1"]
[WhiteTeam "United States"]
[BlackTeam "Kazakhstan"]
[WhiteTeamCountry "USA"]
[BlackTeamCountry "KAZ"]
[TimeControl "40/5400+30:1800+30"]

1. d4 {[%emt 0:00:00]} Nf6 {[%emt 0:00:00]} 2. c4 {[%emt 0:00:00]} e6 {[%emt 0:00:00]} 3. Nf3 {[%emt 0:00:00]} d5 {[%emt 0:00:22]} 4. Nc3 {[%emt 0:00:12]} Bb4 {[%emt 0:00:59]} 5. cxd5 {[%emt 0:00:45]} exd5 {[%emt 0:00:09]} 6. Bg5 {[%emt 0:00:30]} h6 {[%emt 0:00:18]} 7. Bxf6 {[%emt 0:01:20]} Qxf6 {[%emt 0:00:09]} 8. Qa4+ {[%emt 0:00:05]} Nc6 {[%emt 0:00:09]} 9. e3 {[%emt 0:00:08]} O-O {[%emt 0:01:38]} 10. Be2 {[%emt 0:00:51]} Be6 {[%emt 0:07:09]} 11. O-O {[%emt 0:00:33]} a6 {[%emt 0:20:52]} 12. Rfc1 {[%emt 0:00:46]} Bd6 {[%emt 0:07:27]} 13. Qd1 {[%emt 0:00:22]} Rfd8 {[%emt 0:08:07]} 14. Na4 {[%emt 0:03:08]} Ne7 {[%emt 0:02:02]} 15. Nc5 {[%emt 0:03:49]} Bc8 {[%emt 0:00:05]} 16. b4 {[%emt 0:02:25]} g5 {[%emt 0:00:56]} 17. a4 {[%emt 0:01:57]} Ng6 {[%emt 0:05:13]} 18. Nd3 {[%emt 0:07:37]} Bf5 {[%emt 0:12:01]} 19. b5 {[%emt 0:08:09]} a5 {[%emt 0:00:29]} 20. Nc5 {[%emt 0:04:32]} Bc8 {[%emt 0:00:52]} 21. Ne1 {[%emt 0:05:10]} h5 {[%emt 0:12:05]} 22. Bxh5 {[%emt 0:04:44]} Kg7 {[%emt 0:00:31]} 23. g3 {[%emt 0:10:33]} Rh8 {[%emt 0:03:37]} 24. Qf3 {[%emt 0:04:37]} b6 {[%emt 0:05:38]} 25. Qxf6+ {[%emt 0:06:04]} Kxf6 {[%emt 0:00:02]} 26. Bxg6 {[%emt 0:00:08]} Kxg6 {[%emt 0:03:18]} 27. Ncd3 {[%emt 0:02:21]} f6 {[%emt 0:00:46]} 28. Ra2 {[%emt 0:09:48]} Bf5 {[%emt 0:00:19]} 29. f3 {[%emt 0:00:11]} Rh7 {[%emt 0:01:23]} 30. g4 {[%emt 0:06:35]} Bd7 {[%emt 0:02:28]} 31. Rg2 {[%emt 0:01:02]} Re8 {[%emt 0:01:25]} 32. Kf2 {[%emt 0:04:03]} Reh8 {[%emt 0:00:36]} 33. e4 {[%emt 0:03:04]} dxe4 {[%emt 0:01:50]} 34. fxe4 {[%emt 0:00:02]} Rxh2 {[%emt 0:00:31]} 35. e5 {[%emt 0:01:58]} fxe5 {[%emt 0:00:02]} 36. dxe5 {[%emt 0:00:37]} Bc5+ {[%emt 0:01:16]} 37. Nxc5 {[%emt 0:00:21]} bxc5 {[%emt 0:00:02]} 38. Rxh2 {[%emt 0:05:35]} Rxh2+ {[%emt 0:00:02]} 39. Ng2 {[%emt 0:00:04]} Rh3 {[%emt 0:01:24]} 40. Rxc5 {[%emt 0:00:00]} Bxg4 {[%emt 0:00:00]} 41. Rc6+ {[%emt 0:11:52]} Kf7 {[%emt 0:17:17]} 42. Ne3 {[%emt 0:09:33]} Rf3+ {[%emt 0:00:52]} 43. Ke2 {[%emt 0:00:01]} Rf4+ {[%emt 0:00:02]} 44. Kd3 {[%emt 0:05:08]} Rxa4 {[%emt 0:00:02]} 45. Rxc7+ {[%emt 0:01:02]} Ke6 {[%emt 0:01:20]} 46. b6 {[%emt 0:04:26]} Bf3 {[%emt 0:01:20]} 47. Nc4 {[%emt 0:02:28]} Rb4 {[%emt 0:01:54]} 48. Kc3 {[%emt 0:01:30]} Bd5 {[%emt 0:01:39]} 49. Ne3 {[%emt 0:02:40]} Rxb6 {[%emt 0:01:08]} 50. Nxd5 {[%emt 0:00:25]} Kxd5 {[%emt 0:00:08]} 51. Rg7 {[%emt 0:00:04]} a4 {[%emt 0:04:22]} 52. Rxg5 {[%emt 0:00:15]} Rb3+ {[%emt 0:00:06]} 53. Kc2 {[%emt 0:00:07]} Re3 {[%emt 0:00:42]} 54. Kb2 {[%emt 0:00:28]} Kc4 {[%emt 0:01:13]} 55. Rg4+ {[%emt 0:00:07]} Kb5 {[%emt 0:00:05]} 56. Rg5 {[%emt 0:00:12]} Re2+ {[%emt 0:00:03]} 57. Ka3 {[%emt 0:00:07]} Re3+ {[%emt 0:00:04]} 58. Ka2 {[%emt 0:00:17]} Kb4 {[%emt 0:00:07]} 59. Rg4+ {[%emt 0:00:04]} Kb5 {[%emt 0:00:06]} 60. Rg5 {[%emt 0:00:05]} Kb4 {[%emt 0:00:05]} 1/2-1/2

[Event "World Team-ch Women 2019"]
[Site "Astana"]
[Date "2019.03.08"]
[Round "4.17"]
[White "Wafa, Shahenda"]
[Black "Gara, Anita"]
[Result "1-0"]
[ECO "B32"]
[WhiteElo "2175"]
[BlackElo "2384"]
[Annotator "RC"]
[PlyCount "103"]
[EventDate "2019.02.05"]
[EventType "team-tourn"]
[EventCountry "KAZ"]
[SourceTitle "playchess.com"]
[Source "ChessBase"]
[SourceQuality "1"]
[WhiteTeam "Egypt"]
[BlackTeam "Hungary"]
[WhiteTeamCountry "EGY"]
[BlackTeamCountry "HUN"]
[TimeControl "40/5400+30:1800+30"]

1. e4 {[%emt 0:00:00]} c5 {[%emt 0:00:00]} 2. Nf3 {[%emt 0:00:00]} Nc6 {[%emt 0:00:00]} 3. d4 {[%emt 0:00:00]} cxd4 {[%emt 0:00:00]} 4. Nxd4 {[%emt 0:00:00]} Qb6 {[%emt 0:00:00]} 5. Nb3 {[%emt 0:00:45]} Nf6 {[%emt 0:00:00]} 6. Nc3 {[%emt 0:01:16]} e6 {[%emt 0:00:00]} 7. Be3 {[%emt 0:01:04]} Qc7 {[%emt 0:00:07]} 8. a3 {[%emt 0:05:20]} Be7 {[%emt 0:01:51]} 9. f4 {[%emt 0:06:08]} O-O {[%emt 0:01:22]} 10. e5 {[%emt 0:03:22]} Nd5 {[%emt 0:00:08]} 11. Nxd5 {[%emt 0:01:48]} exd5 {[%emt 0:00:04]} 12. Bd3 {[%emt 0:10:30]} d6 {[%emt 0:03:10]} 13. exd6 {[%emt 0:01:51]} Qxd6 {[%emt 0:01:28]} 14. O-O {[%emt 0:05:18]} d4 {[%emt 0:00:59]} 15. Bf2 {[%emt 0:01:42]} g6 {[%emt 0:10:36]} 16. f5 {[%emt 0:02:50]} Bf6 {[%emt 0:03:14]} 17. Qd2 {[%emt 0:10:08]} Be5 {[%emt 0:19:03]} 18. Bg3 {[%emt 0:06:47]} Bxg3 {[%emt 0:11:29]} 19. hxg3 {[%emt 0:00:06]} Ne5 {[%emt 0:04:32]} 20. Qf4 {[%emt 0:04:04]} Re8 {[%emt 0:18:05]} 21. Rae1 {[%emt 0:01:53]} Bd7 {[%emt 0:00:41]} 22. Nd2 {[%emt 0:12:46]} gxf5 {[%emt 0:19:40]} 23. Bxf5 {[%emt 0:02:28]} Bc6 {[%emt 0:00:01]} 24. Ne4 {[%emt 0:03:59]} Bxe4 {[%emt 0:00:06]} 25. Rxe4 {[%emt 0:01:05]} Rad8 {[%emt 0:01:15]} 26. Rfe1 {[%emt 0:02:03]} f6 {[%emt 0:00:03]} 27. g4 {[%emt 0:05:48]} Qf8 {[%emt 0:02:28]} 28. g5 {[%emt 0:01:07]} Nc6 {[%emt 0:02:28]} 29. gxf6 {[%emt 0:01:37]} Rxe4 {[%emt 0:00:09]} 30. Rxe4 {[%emt 0:02:36]} Qxf6 {[%emt 0:00:30]} 31. Bxh7+ {[%emt 0:00:14]} Kg7 {[%emt 0:00:01]} 32. Qg3+ {[%emt 0:00:39]} Kxh7 {[%emt 0:00:24]} 33. Rh4+ {[%emt 0:00:13]} Qxh4 {[%emt 0:00:01]} 34. Qxh4+ {[%emt 0:00:07]} Kg7 {[%emt 0:00:18]} 35. Qf4 {[%emt 0:00:28]} Rf8 {[%emt 0:00:40]} 36. Qg4+ {[%emt 0:00:28]} Kf6 {[%emt 0:00:16]} 37. b4 {[%emt 0:00:25]} a6 {[%emt 0:00:17]} 38. a4 {[%emt 0:00:17]} Rf7 {[%emt 0:01:59]} 39. b5 {[%emt 0:00:28]} axb5 {[%emt 0:00:02]} 40. axb5 {[%emt 0:00:00]} Ne5 {[%emt 0:00:00]} 41. Qxd4 {[%emt 0:00:16]} Rd7 {[%emt 0:04:57]} 42. Qf4+ {[%emt 0:00:23]} Ke6 {[%emt 0:00:18]} 43. c4 {[%emt 0:01:02]} Rc7 {[%emt 0:02:03]} 44. Qh6+ {[%emt 0:02:23]} Kf5 {[%emt 0:02:32]} 45. c5 {[%emt 0:00:33]} Ke4 {[%emt 0:01:39]} 46. Qb6 {[%emt 0:02:33]} Rf7 {[%emt 0:16:45]} 47. c6 {[%emt 0:01:10]} bxc6 {[%emt 0:00:02]} 48. bxc6 {[%emt 0:00:07]} Rf6 {[%emt 0:04:11]} 49. Qb4+ {[%emt 0:00:54]} Kd5 {[%emt 0:01:33]} 50. c7 {[%emt 0:00:14]} Rc6 {[%emt 0:00:31]} 51. Qb5+ {[%emt 0:00:17]} Kd6 {[%emt 0:00:08]} 52. Qxc6+ {[%emt 0:00:10] Kd5} 1-0

[Event "World Team-ch Women 2019"]
[Site "Astana"]
[Date "2019.03.08"]
[Round "4.18"]
[White "Gara, Ticia"]
[Black "Wafa, Shahenda"]
[Result "1-0"]
[ECO "B31"]
[WhiteElo "2324"]
[BlackElo "2175"]
[Annotator "RC"]
[PlyCount "97"]
[EventDate "2019.02.05"]
[EventType "team-tourn"]
[EventCountry "KAZ"]
[SourceTitle "playchess.com"]
[Source "ChessBase"]
[SourceQuality "1"]
[WhiteTeam "Hungary"]
[BlackTeam "Egypt"]
[WhiteTeamCountry "HUN"]
[BlackTeamCountry "EGY"]
[TimeControl "40/5400+30:1800+30"]

1. e4 {[%emt 0:00:00]} c5 {[%emt 0:00:00]} 2. Nf3 {[%emt 0:00:00]} Nc6 {[%emt 0:00:00]} 3. Bb5 {[%emt 0:00:00]} g6 {[%emt 0:00:02]} 4. Bxc6 {[%emt 0:00:07]} dxc6 {[%emt 0:00:28]} 5. d3 {[%emt 0:00:07]} Bg7 {[%emt 0:00:16]} 6. h3 {[%emt 0:00:38]} b6 {[%emt 0:01:38]} 7. a4 {[%emt 0:00:58]} a5 {[%emt 0:00:52]} 8. Nbd2 {[%emt 0:04:02]} Qc7 {[%emt 0:02:20]} 9. O-O {[%emt 0:04:07]} Nf6 {[%emt 0:01:21]} 10. Nc4 {[%emt 0:02:11]} Ba6 {[%emt 0:00:57]} 11. Re1 {[%emt 0:03:40]} Rd8 {[%emt 0:06:04]} 12. Qe2 {[%emt 0:01:50]} O-O {[%emt 0:03:52]} 13. e5 {[%emt 0:11:00]} Nd5 {[%emt 0:00:38]} 14. e6 {[%emt 0:03:55]} Bxc4 {[%emt 0:02:31]} 15. dxc4 {[%emt 0:01:10]} Nf4 {[%emt 0:04:23]} 16. exf7+ {[%emt 0:04:43]} Rxf7 {[%emt 0:00:34]} 17. Qe4 {[%emt 0:00:42]} Rdf8 {[%emt 0:35:42]} 18. Bxf4 {[%emt 0:09:49]} Rxf4 {[%emt 0:02:27]} 19. Qe6+ {[%emt 0:01:29]} Kh8 {[%emt 0:00:23]} 20. Rad1 {[%emt 0:02:51]} Bd4 {[%emt 0:08:43]} 21. Nxd4 {[%emt 0:08:24]} cxd4 {[%emt 0:00:27]} 22. Qxe7 {[%emt 0:01:13]} Qxe7 {[%emt 0:00:45]} 23. Rxe7 {[%emt 0:00:04]} c5 {[%emt 0:03:32]} 24. f3 {[%emt 0:00:47]} R8f7 {[%emt 0:00:58]} 25. Rde1 {[%emt 0:02:11]} Rxe7 {[%emt 0:02:03]} 26. Rxe7 {[%emt 0:00:31]} Rf6 {[%emt 0:00:06]} 27. Kf2 {[%emt 0:00:41]} Kg8 {[%emt 0:00:07]} 28. Kg3 {[%emt 0:05:33]} Rd6 {[%emt 0:00:33]} 29. Kf4 {[%emt 0:02:58]} d3 {[%emt 0:02:04]} 30. cxd3 {[%emt 0:00:07]} Rxd3 {[%emt 0:00:05]} 31. Ke5 {[%emt 0:01:13]} Rd2 {[%emt 0:01:02]} 32. Kf6 {[%emt 0:01:31]} h5 {[%emt 0:00:41]} 33. g4 {[%emt 0:03:49]} hxg4 {[%emt 0:00:35]} 34. hxg4 {[%emt 0:00:25]} Rxb2 {[%emt 0:00:32]} 35. Kxg6 {[%emt 0:00:58]} Kf8 {[%emt 0:00:09]} 36. Rb7 {[%emt 0:07:34]} Rb4 {[%emt 0:00:54]} 37. Kf6 {[%emt 0:01:09]} Ke8 {[%emt 0:00:33]} 38. Ke6 {[%emt 0:09:55]} Kf8 {[%emt 0:00:13]} 39. Kd5 {[%emt 0:05:30]} Rxa4 {[%emt 0:01:46]} 40. Rxb6 {[%emt 0:00:00]} Ra3 {[%emt 0:00:00]} 41. f4 {[%emt 0:04:05]} Rf3 {[%emt 0:03:28]} 42. Ke5 {[%emt 0:03:45]} Rc3 {[%emt 0:08:25]} 43. Ra6 {[%emt 0:05:12]} Rxc4 {[%emt 0:00:13]} 44. Rxa5 {[%emt 0:00:03]} Rc1 {[%emt 0:00:08]} 45. Kf6 {[%emt 0:00:15]} Ke8 {[%emt 0:00:08]} 46. g5 {[%emt 0:00:39]} c4 {[%emt 0:00:44]} 47. g6 {[%emt 0:00:30]} Rd1 {[%emt 0:00:28]} 48. Re5+ {[%emt 0:01:04]} Kd7 {[%emt 0:00:25]} 49. g7 {[%emt 0:00:09]} 1-0

[Event "World Team-ch Women 2019"]
[Site "Astana"]
[Date "2019.03.08"]
[Round "4.19"]
[White "Moaataz, Ayah"]
[Black "Terbe, Julianna"]
[Result "0-1"]
[ECO "A15"]
[WhiteElo "2036"]
[BlackElo "2306"]
[Annotator "RC"]
[PlyCount "120"]
[EventDate "2019.02.05"]
[EventType "team-tourn"]
[EventCountry "KAZ"]
[SourceTitle "playchess.com"]
[Source "ChessBase"]
[SourceQuality "1"]
[WhiteTeam "Egypt"]
[BlackTeam "Hungary"]
[WhiteTeamCountry "EGY"]
[BlackTeamCountry "HUN"]
[TimeControl "40/5400+30:1800+30"]

1. c4 {[%emt 0:00:00]} Nf6 {[%emt 0:00:00]} 2. g3 {[%emt 0:00:00]} c6 {[%emt 0:00:00]} 3. Bg2 {[%emt 0:00:00]} d5 {[%emt 0:00:00]} 4. Nf3 {[%emt 0:00:05]} dxc4 {[%emt 0:00:00]} 5. Qc2 {[%emt 0:00:32]} b5 {[%emt 0:00:10]} 6. b3 {[%emt 0:01:08]} cxb3 {[%emt 0:01:32]} 7. axb3 {[%emt 0:00:05]} Bb7 {[%emt 0:01:46]} 8. Ba3 {[%emt 0:01:11]} Nbd7 {[%emt 0:02:57]} 9. d4 {[%emt 0:00:09]} Qa5+ {[%emt 0:05:54]} 10. b4 {[%emt 0:03:42]} Qb6 {[%emt 0:01:34]} 11. Nbd2 {[%emt 0:00:52]} e6 {[%emt 0:02:39]} 12. Nb3 {[%emt 0:01:10]} Be7 {[%emt 0:01:30]} 13. O-O {[%emt 0:00:32]} O-O {[%emt 0:01:38]} 14. Rfc1 {[%emt 0:03:09]} Rac8 {[%emt 0:08:37]} 15. e4 {[%emt 0:14:32]} Rfd8 {[%emt 0:04:43]} 16. Nc5 {[%emt 0:09:20]} Qc7 {[%emt 0:09:22]} 17. Nxb7 {[%emt 0:07:52]} Qxb7 {[%emt 0:00:48]} 18. Bf1 {[%emt 0:05:31]} Qb8 {[%emt 0:07:55]} 19. Bd3 {[%emt 0:07:23]} g6 {[%emt 0:03:39]} 20. Qb3 {[%emt 0:01:53]} Nb6 {[%emt 0:08:25]} 21. Rc2 {[%emt 0:05:24]} Nfd7 {[%emt 0:03:31]} 22. Rac1 {[%emt 0:04:13]} Qb7 {[%emt 0:00:45]} 23. Bb2 {[%emt 0:01:42]} a6 {[%emt 0:04:04]} 24. h4 {[%emt 0:04:39]} Bf6 {[%emt 0:02:54]} 25. Re1 {[%emt 0:02:58]} Re8 {[%emt 0:03:28]} 26. e5 {[%emt 0:02:45]} Be7 {[%emt 0:04:02]} 27. Bc1 {[%emt 0:00:18]} Nd5 {[%emt 0:04:11]} 28. Bd2 {[%emt 0:00:08]} N7b6 {[%emt 0:00:48]} 29. Kg2 {[%emt 0:01:15]} h5 {[%emt 0:05:17]} 30. Rb2 {[%emt 0:03:01]} Bf8 {[%emt 0:01:25]} 31. Ra1 {[%emt 0:02:37]} Ne7 {[%emt 0:01:25]} 32. Ng5 {[%emt 0:02:56]} Nbd5 {[%emt 0:01:33]} 33. Rba2 {[%emt 0:02:41]} c5 {[%emt 0:03:24]} 34. Be4 {[%emt 0:00:59]} cxd4 {[%emt 0:02:06]} 35. Rxa6 {[%emt 0:00:34]} Ra8 {[%emt 0:01:51]} 36. R6a5 {[%emt 0:02:46]} Nf5 {[%emt 0:00:56]} 37. Bxd5 {[%emt 0:01:23]} exd5 {[%emt 0:00:08]} 38. f4 {[%emt 0:00:21]} Rxa5 {[%emt 0:02:19]} 39. bxa5 {[%emt 0:00:52]} Ra8 {[%emt 0:00:29]} 40. a6 {[%emt 0:00:00]} Qc6 {[%emt 0:00:00]} 41. Ra5 {[%emt 0:03:32]} Qc4 {[%emt 0:08:10]} 42. Qxb5 {[%emt 0:01:31]} Qxb5 {[%emt 0:00:53]} 43. Rxb5 {[%emt 0:00:05]} Rxa6 {[%emt 0:00:04]} 44. Kf2 {[%emt 0:09:47]} Ra2 {[%emt 0:04:08]} 45. Nf3 {[%emt 0:00:15]} Rc2 {[%emt 0:02:27]} 46. Rxd5 {[%emt 0:03:32]} Bb4 {[%emt 0:00:26]} 47. Ke2 {[%emt 0:00:14]} Bxd2 {[%emt 0:02:24]} 48. Nxd2 {[%emt 0:01:41]} Rc3 {[%emt 0:03:33]} 49. Nf1 {[%emt 0:02:35]} Nxg3+ {[%emt 0:04:04]} 50. Nxg3 {[%emt 0:00:06]} Rxg3 {[%emt 0:00:03]} 51. Rd8+ {[%emt 0:00:24]} Kg7 {[%emt 0:00:06]} 52. Rxd4 {[%emt 0:00:05]} Rg4 {[%emt 0:00:52]} 53. Kf3 {[%emt 0:02:08]} Rxh4 {[%emt 0:00:08]} 54. Kg3 {[%emt 0:02:39]} Rg4+ {[%emt 0:01:45]} 55. Kf3 {[%emt 0:00:16]} g5 {[%emt 0:01:38]} 56. Re4 {[%emt 0:00:53]} Rxf4+ {[%emt 0:01:23]} 57. Rxf4 {[%emt 0:00:06]} gxf4 {[%emt 0:00:03]} 58. Kxf4 {[%emt 0:00:08]} Kg6 {[%emt 0:00:04]} 59. Ke4 {[%emt 0:06:07]} Kg5 {[%emt 0:00:16]} 60. Kf3 {[%emt 0:02:20]} Kf5 {[%emt 0:00:05]} 0-1